Cogmind - Beta 16.1 @@@ ROGUE MODE // 2026.04.08 @ 20:48:27 Player: Twist Result: Destroyed by G-34 Mercenary with Small Laser Performance ------------- Evolutions (0) 0 Regions Visited (1) 200 Robots Destroyed (7) 35 Value Destroyed (251) 251 Prototype IDs (2) 40 Alien Tech Used (0) 0 Bonus (0) 0 TOTAL SCORE: 526 Bonus ------- None Cogmind --------- Core Integrity 0/250 Matter 280/300 Energy 125/125 System Corruption 0% Temperature Cool (23) Movement Core (50) Location -10/Materials Parts ------- > --- POWER (1) -------- Light Ion Engine > --- PROPULSION (2) --- (None) > --- UTILITY (2) ------ Weight Redist. System Targeting Computer > --- WEAPON (2) ------- Light Assault Rifle Light Cannon > --- INVENTORY (5) ---- Improved Ion Engine Sensor Array ECM Suite Shield Generator Light Assault Rifle Peak State ------------ > --- POWER ------------ Improved Ion Engine > --- PROPULSION ------- Improved Hover Unit Improved Hover Unit > --- UTILITY ---------- Weight Redist. System Shield Generator > --- WEAPON ----------- Medium Laser > --- INVENTORY -------- Aluminum Leg Aluminum Leg Sensor Array Shield Generator [Rating: 11] Favorites ----------- Power Light Ion Engine Engine Light Ion Engine Propulsion Aluminum Leg Leg Aluminum Leg Hover Unit Improved Hover Unit Flight Unit Flight Unit Utility Weight Redist. System Device Weight Redist. System Processor Targeting Computer Weapon Light Assault Rifle Energy Gun Medium Laser Ballistic Gun Light Assault Rifle Ballistic Cannon Light Cannon Build | -11 -10 ------- Run | Yrd Mat Slots Evolved . | . . Power . | . . Propulsion . | . . Utility . | . . Weapon . | . . Parts Attached 22 | 6 16 Power 4 | 1 3 Engine 4 | 1 3 Core . | . . Reactor . | . . Propulsion 6 | 2 4 Treads . | . . Leg 2 | 2 . Wheel . | . . Hover 3 | . 3 Flight 1 | . 1 Utility 7 | 1 6 Device 5 | 1 4 Storage . | . . Processor 2 | . 2 Hackware . | . . Protection . | . . Artifact . | . . Weapon 5 | 2 3 Energy Gun 2 | 2 . Energy Cannon . | . . Ballistic Gun 2 | . 2 Ballistic Cannon 1 | . 1 Launcher . | . . Special Weapon . | . . Impact Weapon . | . . Slashing Weapon . | . . Piercing Weapon . | . . Special Melee Weapon . | . . Unidentified Prototypes . | . . Parts Lost 6 | . 6 Power 1 | . 1 Propulsion 3 | . 3 Utility 1 | . 1 Weapon 1 | . 1 Highest Loss Streak 2 | . 2 To Critical Strikes . | . . Average Backups 2 | . 3 Power . | . . Propulsion . | . . Utility 2 | . 2 Weapon . | . . Tool/Special . | . . Unused Backups 2 | . 2 Power . | . . Propulsion . | . . Utility 1 | . 1 Weapon 1 | . 1 Tool/Special . | . . Average Slot Usage (%) 82 | . 82 Engine 13 | . 13 Leg 9 | . 9 Hover 10 | . 10 Flight 1 | . 1 Device 18 | . 18 Processor 6 | . 6 Energy Gun 8 | . 8 Ballistic Gun 12 | . 12 Peak Build Rating 11 | 6 11 Average Rating 7 | 3 7 On Entrance 3 | . 6 Avg Prop Armor Cover (%) 5 | . 5 Naked Turns . | . . Heaviest Build 11 | 8 11 Greatest Support 26 | 20 26 Greatest Overweight (x) 1 | . 1 Average Overweight (x) . | . . Largest Inventory Capacity 5 | 5 5 Average Capacity 5 | 5 5 Most Carried 5 | . 5 Average Carried 3 | . 3 Final Capacity 5 | 5 5 Final Carried 5 | . 5 Class Distribution -------------------- 100% | Mutant Dominant Class ---------------- Mutant | -10/Materials Resources | -11 -10 ----------- Run | Yrd Mat Matter Collected 433 | 250 183 Remotely . | . . Salvage Created 255 | 40 215 Parts 14 | 4 10 Haulers Intercepted . | . . Recyclers Shooed . | . . Parts Field Recycled . | . . Retrieved Matter . | . . Parts Self-Destructed . | . . Prevented . | . . Parts Restored . | . . Kills | -11 -10 ------- Run | Yrd Mat Combat Hostiles Destroyed 7 | 1 6 Guns 6 | 1 5 Cannons 1 | . 1 Classes Destroyed 1 | 1 . Grunt 7 | 1 6 Best Kill Streak 3 | 1 3 Combat Bots Only 3 | 1 3 Max Kills in Single Turn 1 | 1 1 Gunslinging . | . . Exploded . | . . Melee . | . . Uniques/NPCs Destroyed . | . . Combat | -11 -10 -------- Run | Yrd Mat Hostile Shots Fired 124 | 3 121 Missed 45 | . 45 Hits 79 | 3 76 Projectile 79 | 3 76 Damage Taken 824 | 35 789 Core 256 | 11 245 Absorbed by Shields 87 | . 87 Core Remaining (%) 95 | 95 . Volleys Fired 29 | 2 27 Largest 2 | 2 2 Hottest 90 | 90 90 Shots Fired 57 | 4 53 Gun 54 | 4 50 Cannon 3 | . 3 Launcher . | . . Special . | . . Kinetic 40 | . 40 Thermal 9 | 2 7 Explosive . | . . Electromagnetic 8 | 2 6 Robot Hit Streak 6 | 4 6 Robot Miss Streak 4 | . 4 Penetration Max . | . . Secondary Targets 1 | . 1 Max Gunslinging Chain 1 | . 1 Shots Hit Robots 32 | 4 28 Core Hits 16 | 2 14 Critical Kills . | . . Critical Parts Destroyed . | . . Critical Strikes 1 | 1 . Burn 1 | 1 . Melee Attacks . | . . Impact . | . . Slashing . | . . Piercing . | . . Sneak Attacks . | . . Combat Hostiles . | . . Follow-up Attacks . | . . Damage Inflicted 364 | 50 314 Guns 310 | 50 260 Cannons 33 | . 33 Explosions . | . . Melee . | . . Ramming 21 | . 21 Kinetic 210 | . 210 Thermal 50 | 25 25 Explosive . | . . Electromagnetic 83 | 25 58 Impact . | . . Slashing . | . . Piercing . | . . Highest Corruption . | . . Average Corruption . | . . Corruption Purged . | . . Corruption Blocked . | . . Overload Shots . | . . Overflow Damage . | . . Projectiles . | . . Explosions . | . . Melee . | . . Knockbacks 1 | . 1 Impact . | . . Kinetic 1 | . 1 Secondary . | . . Self-Inflicted Damage 4 | . 4 Shots . | . . Rammed 1 | . 1 Targets Rammed 7 | . 7 Kicked 6 | . 6 Crushed . | . . Highest Temperature 146 | 66 146 Average Temperature 29 | 36 28 Received Heat Transfer 422 | 18 404 Siege Activations . | . . Martial Activations . | . . Shielding Activations . | . . Robots Disrupted . | . . Combat Hostiles . | . . Robots Corrupted . | . . Combat Hostiles . | . . Parts Fried . | . . Impact Corruptions . | . . Robots Melted . | . . Combat Hostiles . | . . Parts Melted . | . . Heat Transferred 222 | 148 74 Parts Sabotaged . | . . Parts Stolen . | . . Parts Stripped . | . . Power Chain Reactions . | . . Alert | -11 -10 ------- Run | Yrd Mat Maximum Alert Level . | . . Low Security (%) 100 | 100 100 Level 1 . | . . Level 2 . | . . Level 3 . | . . Level 4 . | . . Level 5 . | . . High Security . | . . Max Security . | . . Peak Influence 85 | 20 85 Initial 6 | . 6 Average 38 | 3 43 Influence Increases 341 | 20 321 Destroy 0b10 Robot/C 140 | 20 120 Destroy Leader 20 | . 20 Successful Hack 16 | . 16 Lose Combat Pursuer 165 | . 165 Influence Decreases 292 | 10 282 Entered New Map 4 | . 4 Time Decay 228 | 10 218 Lost Part 60 | . 60 Squads Dispatched 3 | . 3 Investigation 2 | . 2 Extermination . | . . Reinforcement 1 | . 1 Assault . | . . Garrison . | . . Intercept . | . . Searches Triggered . | . . Construction Impeded . | . . Haulers Reinforced . | . . Active Scanning Responses . | . . Cargo Convoy Interrupts . | . . Stealth | -11 -10 --------- Run | Yrd Mat Distress Signals 3 | . 3 Communications Jammed . | . . Distress Signals . | . . Times Spotted 26 | 1 25 Peak Tracking Total 6 | 1 6 Tactical Retreats 7 | . 7 Traps | -11 -10 ------- Run | Yrd Mat Traps Triggered 1 | . 1 Indirectly . | . . Trap Hack Attempts . | . . Triggered . | . . Disarmed . | . . Reprogrammed . | . . Reused . | . . Traps Extracted . | . . Installed . | . . Triggered . | . . Machines | -11 -10 ---------- Run | Yrd Mat Machines Disabled . | . . Max in Single Turn . | . . Machines Repaired . | . . Machines Dismantled . | . . Machines Sabotaged . | . . Overloaded Fab Kills . | . . Hacking | -11 -10 --------- Run | Yrd Mat Machines Accessed 1 | . 1 Terminals 1 | . 1 Fabricators . | . . Repair Stations . | . . Recycling Units . | . . Scanalyzers . | . . Garrison Access . | . . Total Hacks 8 | . 8 Successful 4 | . 4 Failed 4 | . 4 Catastrophic . | . . Database Lockouts . | . . Manual . | . . Terminals 8 | . 8 Fabricators . | . . Repair Stations . | . . Recycling Units . | . . Scanalyzers . | . . Garrison Access . | . . Terminal Hacks 4 | . 4 Prototype ID Bank 1 | . 1 Branch Access Points 1 | . 1 Emergency Access Points 1 | . 1 Dispatch Records 1 | . 1 Fabricator Hacks . | . . Repair Station Hacks . | . . Recycling Unit Hacks . | . . Scanalyzer . | . . Garrison Access Hacks . | . . Unauthorized Hacks . | . . Terminals . | . . Fabricators . | . . Repair Stations . | . . Recycling Units . | . . Scanalyzers . | . . Garrison Access . | . . Data Cores Recovered . | . . Used . | . . Hacking Detections 1 | . 1 Full Trace Events 1 | . 1 Feedback Events . | . . Feedback Blocked . | . . Robot Schematics Acquired . | . . Robots Built . | . . Authchips . | . . Time . | . . Total Robot Build Rating . | . . Part Schematics Acquired . | . . Parts Built . | . . Authchips . | . . Time . | . . Total Part Build Rating . | . . Part Studies Acquired . | . . Parts Repaired . | . . Time . | . . Parts Recycled . | . . Recycled Matter . | . . Retrieved Matter . | . . Retrieved Components . | . . Parts Scanalyzed . | . . Part Schematics Acquired . | . . Parts Damaged . | . . Bothacking | -11 -10 ------------ Run | Yrd Mat Used RIF Installer . | . . Robots Hacked . | . . Non-combat . | . . Combat . | . . Robot Hacks Applied . | . . Relay Couplers Released . | . . Fabnet Peak Effective % . | . . Robots Rewired . | . . Allies Hacked . | . . Hacks Repelled . | . . Allies | -11 -10 -------- Run | Yrd Mat Total Allies . | . . Largest Group . | . . Highest-Rated Group . | . . Highest-Rated Ally . | . . Total Orders . | . . Ally Attacks . | . . Total Damage . | . . Kills . | . . Allies Corrupted . | . . Allies Melted . | . . Intel | -11 -10 ------- Run | Yrd Mat Active Infowar (turns) 35 | . 35 Sensors 35 | . 35 Robot Analysis Total . | . . Derelict Logs Recovered . | . . Drone Launches . | . . Drone Recoveries . | . . Exploration | -11 -10 ------------- Run | Yrd Mat Turns Passed 653 | 82 571 Spaces Moved 547 | 66 481 Core 16 | 16 . Treads . | . . Legs 165 | 50 115 Wheels . | . . Hover 365 | . 365 Flight 1 | . 1 Fastest Speed 50 | 50 56 Average Speed 77 | 103 74 Slowest Speed 120 | 120 120 Overloaded Moves . | . . Propulsion Burnouts . | . . Robots Hopped . | . . Potential Cave-ins . | . . Cave-ins Triggered . | . . Exploration Rate (%) 37 | 7 68 Regions Visited 1 Branch Regions . Pre-discovered Areas . | . . Known Exits Taken . | . . Unknown Exits Taken 1 | 1 . Scrap Searched . | . . Spaces Dug . | . . Terrain Destroyed . | . . Melee . | . . Projectile . | . . AOE . | . . Terrain Rammed . | . . Walls Destroyed . | . . Machines Disabled . | . . Actions | -11 -10 --------- Run | Yrd Mat Total 719 | 73 646 Wait 93 | . 93 Move 546 | 65 481 Hop . | . . Pick Up 4 | . 4 Fast Attach 18 | 6 12 Attach 1 | . 1 Detach 6 | . 6 Swap 7 | . 7 Drop 8 | . 8 Fire 29 | 2 27 Melee . | . . Ram 1 | . 1 Kick 6 | . 6 Crush . | . . Escape Stasis . | . . Rewire . | . . Trap . | . . Miscellaneous . | . . Route ------- -11/Scrapyard -10/Materials (discovered 3 exits: [*Mat x2] / *Min) History --------- Turn | Location | Event 2 | -11/Scrapyard | Met Revision 17 57 | -11/Scrapyard | Discovered new exit (range 8) 83 | -11/Scrapyard | Entered Materials 285 | -10/Materials | Core integrity fell below 50% 310 | -10/Materials | Discovered new exit (range 4) 327 | -10/Materials | Build established: Mutant 342 | -10/Materials | Discovered new exit (range 8) 412 | -10/Materials | Discovered new exit (range 15) 421 | -10/Materials | Core integrity fell below 20% 504 | -10/Materials | Identified exit to Mines 654 | -10/Materials | Destroyed by G-34 Mercenary with Small Laser Last Messages --------------- (38,37) Mines Map updated. >>Enumerate(Squads) Retrieving dispatch records... Found 6 active squads: 3x Surveillance 2x Transport 1x Reinforcement ALERT: Suspicious activity at Terminal M004. Dispatching Investigation squad. K-01 Serf cleans the Terminal. G-34 Mercenary misfires. G-34 Mercenary destroyed. Acquired 8 matter. Dropped Lgt. Assault Rifle. Acquired Lgt. Cannon. T-07 Excavator is excavating. G-34 Mercenary knocked back. G-34 Mercenary destroyed. Imp. Hover Unit destroyed. Map ----- +----------------------------------------------------+ | | | | | | | | | ??????????????????????????????????????????????? | | ??????????????????????????????????????????????? | | ??????????????????????????????????????????????? | | ??????????????????????????????????????????????? | | ??????????????????????????????????????????????? | | ??????????????????????????????????????????????? | | ??????????????????????????????????????????????? | | ??????????????????????????????????????????????? | | ??????????????????????????????????????????????? | | ??????????????????????????????????????????????? | | ??????????????########????????????????????????? | | ??????????????# #????????????????????????? | | ??????????????# #????????????????????????? | | ??????????????# #???????????????#####????? | | ??????????????# #???????????????# #????? | | ??????????????# #???????????????# < #????? | | ??????????????# #???########????# #????? | | ??????????????####+####### #????# #????? | | ???????###+###???# # #????# #????? | | ???????# #???# # #????# #????? | | ???????# ##### %* # /#???##[% ##???? | | ???????# u %%! @ #???# = #???? | | ???????# ##/##+#### g# #???# #???? | | ???????# # # ##g#####???# ! ! #???? | | ???????## ## + #???????#[ = #???? | | ????????# ## ## ####???????# ! #???? | | ????????# ## [ # #?????????## *=##???? | | ######### ########### ##??????????# =#????? | | #?????????####???????????# = #????? | | #????????????????????????+ [#????? | | #????????????????????????# #????? | | %^= +????????????????????????# ###### | | ^ #????????????????????????# # # | | ####= ##???????????????????????# # # | | #" #???????????????????????# # | # | | #"" #???????????????????????# # = # | | #!! #???????????????????????# + | # | | #"" > #???????????????????????# # # | | # #|| #???????????????????????# # # | | # #"" #???????????????????????# # # | | # #" #????????????????######## # # | | # #### ##??#######???????# # ###### | | # ##### #???????# # #????? | | ######### + #????? | | ! / "T" # #????? | | % ######### """ # #????? | +----------------------------------------------------+ Best States ------------- Heat Dissipation 35 Energy Generation 12 Energy Capacity 265 Matter Stores 300 Matter Capacity 300 Sight Range 16 Robot Scan Range 14 Terrain Scan Density 10 Additional Mass Support 6 Evasion (%) 55 Targeting Accuracy 5 Item Schematics ----------------- None Robot Schematics ------------------ None Fabricated ------------ Nothing Repaired ---------- Nothing Studied --------- None Alien Tech Used ----------------- None Achievements -------------- None Challenges ------------ None Game ------ Seed VisualStasisDissipator Manual? 0 Play Time 00:15:46 Cumulative 1.3 hours Start 2026.04.08 @ 20:24:41 End 2026.04.08 @ 20:48:27 Sessions 1 Manual Loads 0 Difficulty Rogue Special Mode None Game No. 3 Rogue 3 Adventurer 0 Explorer 0 Win Type - Total 0 Types 0/0/0/0/0/0/0/0/0/0 Lore% 0 Gallery% 2 Achievement% 3 Wizard Run 0 Options --------- Layout 1 ASCII 1 Keyboard 1 Movement Numpad Keybinds 0 Fullscreen 1 Font 24/Terminus Map View 50x35 Zoom Use 0% Tactical HUD 0 Map Filters NONE Filters NONE Steam X RUN: 9ae67583-378a-4305-8d95-fc23db528e71